[Event "Pia Cramling Ladies Open 2018"]
[Site "Stockholm"]
[Date "2018.09.01"]
[Round "4"]
[White "Cramling Bellon, Anna"]
[Black "Tetenkina, Irina"]
[Result "1-0"]
[ECO "D35"]
[WhiteElo "2009"]
[BlackElo "2214"]
[Annotator "NA"]
[PlyCount "77"]
[EventDate "2018.09.01"]
[EventType "swiss"]
[EventCountry "SWE"]
[SourceTitle "playchess.com"]
[Source "ChessBase"]
[SourceQuality "1"]
[TimeControl "1800+10"]

1. d4 {[%emt 0:00:00]} d5 {[%emt 0:00:00]} 2. c4 {[%emt 0:00:00]} e6 {[%emt 0:00:00]} 3. Nc3 {[%emt 0:00:08]} Nf6 {[%emt 0:00:00]} 4. cxd5 {[%emt 0:00:06]} exd5 {[%emt 0:00:00]} 5. Bg5 {[%emt 0:00:04]} Be7 {[%emt 0:00:10]} 6. e3 {[%emt 0:00:02]} O-O {[%emt 0:00:14]} 7. Bd3 {[%emt 0:00:02]} Nbd7 {[%emt 0:00:45]} 8. Qc2 {[%emt 0:01:29]} c6 {[%emt 0:00:43]} 9. Nf3 {[%emt 0:00:10]} Re8 {[%emt 0:00:59]} 10. O-O {[%emt 0:00:09]} Nf8 {[%emt 0:02:28] LiveBook: 2384 Games} 11. h3 {[%emt 0:00:23]} Ne4 {[%emt 0:02:28]} 12. Bxe7 {[%emt 0:02:53]} Qxe7 {[%emt 0:00:05]} 13. Bxe4 {[%emt 0:02:21]} dxe4 {[%emt 0:00:05]} 14. Nd2 {[%emt 0:00:08]} Bf5 {[%emt 0:02:51] D36: Queen's Gambit Declined: Exchange Variation: Main line (5 Bg5 c6 6 Qc2)} 15. f4 {[%emt 0:05:40]} h5 {[%emt 0:06:13]} 16. Qd1 $146 {[%emt 0:02:36]} ({Predecessor:} 16. a3 Nh7 17. b4 Nf6 18. Nc4 Nd5 19. Rac1 Rad8 20. Qe2 h4 21. Ne5 g6 22. Rc2 Kg7 23. Nxd5 Rxd5 24. Rc5 a5 25. Qb2 axb4 26. axb4 Qe6 27. Rfc1 Ra8 {½-½ (27) Pecorelli Garcia,H (2430)-Garcia,G (2525) Santa Clara 1996}) 16... h4 {[%emt 0:00:56]} 17. Qe1 {[%emt 0:02:51]} Rad8 {[%emt 0:00:17]} 18. Kh2 {[%emt 0:00:41]} Rd6 {[%emt 0:00:48]} 19. Nc4 {[%emt 0:03:20]} Rg6 {[%emt 0:05:33]} 20. Ne5 {[%emt 0:00:22]} Rg3 {[%emt 0:00:05]} 21. Ne2 {[%emt 0:02:43]} Rxe3 {[%emt 0:01:06]} 22. Qf2 {[%emt 0:00:01] [#]} Rd3 $1 {[%emt 0:00:45]} 23. Nxd3 {[%emt 0:00:10]} exd3 {[%emt 0:00:01]} 24. Nc3 {[%emt 0:00:01]} Ng6 {[%emt 0:03:38]} 25. Rae1 {[%emt 0:01:33]} Qd8 {[%emt 0:00:01]} 26. Rxe8+ {[%emt 0:01:00]} Qxe8 {[%emt 0:00:01]} 27. Re1 {[%emt 0:01:57]} Qb8 {[%emt 0:00:01]} 28. Rf1 $11 {[%emt 0:00:46]} Qd6 {[%emt 0:00:14]} 29. Qe3 {[%emt 0:00:10]} b6 {[%emt 0:02:17]} 30. Na4 {[%emt 0:01:11]} Kh7 {[%emt 0:00:49]} 31. b3 {[%emt 0:00:11]} Nf8 {[%emt 0:01:19]} 32. Nb2 {[%emt 0:00:53]} Ne6 {[%emt 0:00:02]} 33. Nxd3 {[%emt 0:00:16]} Nxd4 {[%emt 0:00:04]} 34. Ne5 {[%emt 0:01:00]} f6 {[%emt 0:00:15]} 35. Nc4 {[%emt 0:00:02]} Qd7 {[%emt 0:00:20]} 36. Qe1 {[%emt 0:00:24]} g5 {[%emt 0:00:10]} 37. fxg5 {[%emt 0:00:04]} fxg5 {[%emt 0:00:01]} 38. Qe5 {[%emt 0:00:11]} c5 {[%emt 0:00:06]} 39. Ne3 {[%emt 0:00:12]} 1-0

[Event "Pia Cramling Ladies Open 2018"]
[Site "Stockholm"]
[Date "2018.09.01"]
[Round "4"]
[White "Bengtsson, Jessica"]
[Black "Tuominen, Tanja"]
[Result "1-0"]
[ECO "B22"]
[WhiteElo "1986"]
[BlackElo "2076"]
[Annotator "NA"]
[PlyCount "82"]
[EventDate "2018.09.01"]
[EventType "swiss"]
[EventCountry "SWE"]
[SourceTitle "playchess.com"]
[Source "ChessBase"]
[SourceQuality "1"]
[TimeControl "1800+10"]

1. e4 {[%emt 0:00:00]} c5 {[%emt 0:00:00]} 2. c3 {[%emt 0:00:02]} Nf6 {[%emt 0:00:00]} 3. e5 {[%emt 0:00:13]} Nd5 {[%emt 0:00:01]} 4. d4 {[%emt 0:00:00]} cxd4 {[%emt 0:00:11]} 5. Nf3 {[%emt 0:00:09]} e6 {[%emt 0:00:26]} 6. cxd4 {[%emt 0:00:06]} b6 {[%emt 0:00:05]} 7. Nc3 {[%emt 0:00:30]} Nxc3 {[%emt 0:00:38]} 8. bxc3 {[%emt 0:00:04]} Bb7 {[%emt 0:01:27]} 9. Bd3 {[%emt 0:00:28]} d6 {[%emt 0:01:03]} 10. O-O {[%emt 0:00:53]} Nd7 {[%emt 0:02:40]} 11. Re1 {[%emt 0:03:06]} Qc7 {[%emt 0:01:37]} 12. Bf4 {[%emt 0:07:34]} a6 {[%emt 0:08:44]} 13. Qe2 {[%emt 0:08:36]} Qc6 {[%emt 0:07:21]} 14. d5 {[%emt 0:07:50]} Qxd5 {[%emt 0:01:03]} 15. Bc4 {[%emt 0:00:15]} Qc6 {[%emt 0:00:10]} 16. exd6 {[%emt 0:00:46]} Nc5 {[%emt 0:03:59]} 17. Rad1 {[%emt 0:00:59]} O-O-O {[%emt 0:00:15]} 18. Qe5 {[%emt 0:01:04]} Rd7 {[%emt 0:00:19]} 19. Qe2 {[%emt 0:00:19]} Bxd6 {[%emt 0:00:30]} 20. Be3 {[%emt 0:00:06]} Ne4 {[%emt 0:01:06]} 21. Rc1 {[%emt 0:00:14]} b5 {[%emt 0:00:56]} 22. Bb3 {[%emt 0:00:05]} Nc5 {[%emt 0:00:10]} 23. Bxc5 {[%emt 0:00:09]} Bxc5 {[%emt 0:00:04]} 24. Qf1 {[%emt 0:00:14]} Qc7 {[%emt 0:00:16]} 25. c4 {[%emt 0:00:04]} b4 {[%emt 0:00:04]} 26. Ba4 {[%emt 0:00:12]} Rd6 {[%emt 0:00:24]} 27. Rcd1 {[%emt 0:00:13]} Bxf3 {[%emt 0:00:15]} 28. gxf3 {[%emt 0:00:01]} Rhd8 {[%emt 0:00:11]} 29. Qe2 {[%emt 0:00:16]} Rxd1 {[%emt 0:00:38]} 30. Rxd1 {[%emt 0:00:02]} Rxd1+ {[%emt 0:00:05]} 31. Qxd1 {[%emt 0:00:01]} Qe7 {[%emt 0:00:13]} 32. Qd2 {[%emt 0:00:25]} Bd6 {[%emt 0:00:13]} 33. Kg2 {[%emt 0:00:16]} Kc7 {[%emt 0:00:02]} 34. Qe3 {[%emt 0:00:09]} Bc5 {[%emt 0:00:15]} 35. Qf4+ {[%emt 0:00:10]} e5 {[%emt 0:00:12]} 36. Qe4 {[%emt 0:00:12]} Qd6 {[%emt 0:00:04]} 37. Kf1 {[%emt 0:00:12]} g6 {[%emt 0:00:10]} 38. Kg2 {[%emt 0:00:06]} Qf6 {[%emt 0:00:21]} 39. h4 {[%emt 0:00:13]} Be7 {[%emt 0:00:08]} 40. Qa8 {[%emt 0:00:12]} Qb6 {[%emt 0:00:12]} 41. Qe8 {[%emt 0:00:07]} Qe6 1-0

[Event "Pia Cramling Ladies Open 2018"]
[Site "Stockholm"]
[Date "2018.09.01"]
[Round "4"]
[White "Puuska, Heini"]
[Black "Berg, Maria"]
[Result "1-0"]
[ECO "D00"]
[WhiteElo "1961"]
[BlackElo "1722"]
[Annotator "NA"]
[PlyCount "74"]
[EventDate "2018.09.01"]
[EventType "swiss"]
[EventCountry "SWE"]
[SourceTitle "playchess.com"]
[Source "ChessBase"]
[SourceQuality "1"]
[TimeControl "1800+10"]

1. d4 {[%emt 0:00:19]} d5 {[%emt 0:00:00]} 2. Bg5 {[%emt 0:00:12]} Bf5 {[%emt 0:00:35]} 3. Nf3 {[%emt 0:00:30]} Nd7 {[%emt 0:00:56]} 4. c4 {[%emt 0:00:47]} Ngf6 {[%emt 0:00:33]} 5. cxd5 {[%emt 0:00:42]} Nxd5 {[%emt 0:01:17]} 6. Nc3 {[%emt 0:00:43]} N7b6 {[%emt 0:00:41]} 7. e3 {[%emt 0:01:02]} f6 {[%emt 0:04:11]} 8. Bh4 {[%emt 0:00:19]} e6 {[%emt 0:00:23]} 9. Bd3 {[%emt 0:01:45]} Bxd3 {[%emt 0:01:09]} 10. Qxd3 {[%emt 0:00:09]} Bd6 {[%emt 0:01:22]} 11. O-O {[%emt 0:01:17]} Qd7 {[%emt 0:01:28]} 12. Rac1 {[%emt 0:02:01]} a6 {[%emt 0:04:36]} 13. a3 {[%emt 0:02:16]} O-O {[%emt 0:00:13]} 14. Ne4 {[%emt 0:00:49]} Rae8 {[%emt 0:01:41]} 15. Nc5 {[%emt 0:01:41]} Bxc5 {[%emt 0:02:32]} 16. dxc5 {[%emt 0:03:45]} Ne7 {[%emt 0:04:08]} 17. Qb3 {[%emt 0:01:54]} Qd5 {[%emt 0:01:10]} 18. Qc2 {[%emt 0:01:36]} Nbc8 {[%emt 0:00:48]} 19. Rfd1 {[%emt 0:00:44]} Qh5 {[%emt 0:01:21]} 20. Bg3 {[%emt 0:02:40]} c6 {[%emt 0:00:40]} 21. Rd7 {[%emt 0:00:33]} b5 {[%emt 0:00:16]} 22. Nd4 {[%emt 0:01:20]} e5 {[%emt 0:02:19]} 23. Ne6 {[%emt 0:01:22]} Rf7 {[%emt 0:00:02]} 24. Nc7 {[%emt 0:00:30]} Ref8 {[%emt 0:00:22]} 25. Nxa6 {[%emt 0:00:39]} Nd5 {[%emt 0:00:06]} 26. Rxf7 {[%emt 0:00:15]} Qxf7 {[%emt 0:00:26]} 27. e4 {[%emt 0:00:47]} Nc7 {[%emt 0:00:25]} 28. Nb4 {[%emt 0:00:12]} Qe6 {[%emt 0:00:31]} 29. Rd1 {[%emt 0:00:22]} Re8 {[%emt 0:00:25]} 30. f3 {[%emt 0:00:20]} Kh8 {[%emt 0:00:10]} 31. Bf2 {[%emt 0:00:06]} h6 {[%emt 0:00:07]} 32. Rd3 {[%emt 0:00:13]} Re7 {[%emt 0:00:16]} 33. Rd8+ {[%emt 0:00:30]} Re8 {[%emt 0:00:02]} 34. Qd3 {[%emt 0:00:32]} Rxd8 {[%emt 0:00:17]} 35. Qxd8+ {[%emt 0:00:01]} Ne8 {[%emt 0:00:02]} 36. h3 {[%emt 0:00:19]} Kh7 {[%emt 0:00:02]} 37. Be3 {[%emt 0:00:19]} Na7 1-0

[Event "Pia Cramling Ladies Open 2018"]
[Site "Stockholm"]
[Date "2018.09.01"]
[Round "4"]
[White "Berg Laachiri, Susanna"]
[Black "Reizniece-Ozola, Dana"]
[Result "0-1"]
[ECO "B08"]
[WhiteElo "1903"]
[BlackElo "2304"]
[Annotator "NA"]
[PlyCount "80"]
[EventDate "2018.09.01"]
[EventType "swiss"]
[EventCountry "SWE"]
[SourceTitle "playchess.com"]
[Source "ChessBase"]
[SourceQuality "1"]
[TimeControl "1800+10"]

1. e4 {[%emt 0:00:00]} g6 {[%emt 0:00:00]} 2. d4 {[%emt 0:00:00]} Bg7 {[%emt 0:00:00]} 3. Nf3 {[%emt 0:00:07]} d6 {[%emt 0:00:03]} 4. Be2 {[%emt 0:00:26]} Nf6 {[%emt 0:00:05]} 5. Nc3 {[%emt 0:00:06]} O-O {[%emt 0:00:05]} 6. O-O {[%emt 0:00:16]} c6 {[%emt 0:00:02]} 7. Be3 {[%emt 0:02:18]} b5 {[%emt 0:00:00]} 8. a3 {[%emt 0:00:27] B08: Pirc Defence: Classical System} Bb7 {[%emt 0:00:30]} 9. h3 {[%emt 0:04:46]} a6 {[%emt 0:01:05] LiveBook: 5 Games} 10. Re1 {[%emt 0:02:09]} (10. e5 Nd5 11. Nxd5 cxd5 12. Qd2 Nc6 13. exd6 Qxd6 14. Bf4 Qd7 15. Bh6 f6 {1-0 (36) Przybylski,W (2378)-Shirov,A (2691) Jurmala 2015}) 10... Qc7 {[%emt 0:01:27]} 11. e5 $146 {[%emt 0:00:56]} ({Predecessor:} 11. Bf1 c5 12. e5 dxe5 13. dxe5 Ne8 14. Bf4 e6 15. Qe2 {1-0 (28) Wheeler,R (2016)-Diedrick,M (1829) Kingston 2016}) 11... Nd5 {[%emt 0:00:48]} 12. Nxd5 {[%emt 0:00:33]} cxd5 {[%emt 0:00:02]} 13. Bf4 {[%emt 0:00:42]} Nc6 {[%emt 0:00:05]} 14. exd6 {[%emt 0:01:53]} exd6 {[%emt 0:00:05]} 15. c3 {[%emt 0:00:27]} Rfe8 {[%emt 0:01:23]} 16. Qd2 {[%emt 0:00:46]} Na5 {[%emt 0:00:40]} 17. Rab1 {[%emt 0:03:57]} Nc4 {[%emt 0:00:29]} 18. Bxc4 {[%emt 0:01:24]} dxc4 {[%emt 0:00:57]} 19. Rxe8+ {[%emt 0:00:50]} Rxe8 {[%emt 0:00:01]} 20. Re1 {[%emt 0:04:58]} Rxe1+ {[%emt 0:00:08]} 21. Qxe1 {[%emt 0:00:03]} Qd7 {[%emt 0:00:10]} 22. Qe3 {[%emt 0:00:37]} Bf8 {[%emt 0:00:47]} 23. Bg5 {[%emt 0:01:33]} Qe6 {[%emt 0:01:44]} 24. Qf4 {[%emt 0:00:53]} f5 {[%emt 0:01:37]} 25. Bh6 {[%emt 0:00:42]} Bxf3 {[%emt 0:03:37]} 26. gxf3 {[%emt 0:00:05]} Be7 {[%emt 0:01:57]} 27. Bg5 {[%emt 0:00:03]} Kf7 {[%emt 0:02:06]} 28. Bxe7 {[%emt 0:00:25]} Qxe7 {[%emt 0:00:32]} 29. h4 {[%emt 0:00:22]} Ke6 {[%emt 0:01:36]} 30. Kg2 {[%emt 0:00:22]} Kd5 {[%emt 0:00:27]} 31. Qh6 {[%emt 0:00:37]} Kc6 {[%emt 0:01:23]} 32. Kf1 {[%emt 0:00:24]} Kb6 {[%emt 0:00:11]} 33. Qf4 {[%emt 0:00:16]} Ka5 {[%emt 0:00:47]} 34. Qd2 {[%emt 0:00:19]} Qxh4 {[%emt 0:00:20]} 35. Qe3 {[%emt 0:00:30]} Qh1+ {[%emt 0:00:31]} 36. Ke2 {[%emt 0:00:01]} Qb1 {[%emt 0:00:14]} 37. Qd2 {[%emt 0:00:05]} Ka4 {[%emt 0:00:24]} 38. Ke3 $19 {[%emt 0:00:37]} Kb3 {[%emt 0:01:04]} 39. Kf4 {[%emt 0:00:02]} Qxb2 {[%emt 0:00:25]} 40. Qd1+ {[%emt 0:00:27]} Kxc3 {[%emt 0:00:02]} 0-1

[Event "Pia Cramling Ladies Open 2018"]
[Site "Stockholm"]
[Date "2018.09.01"]
[Round "4"]
[White "Rinne, Heini"]
[Black "Andersson, Christin"]
[Result "0-1"]
[ECO "D35"]
[WhiteElo "1760"]
[BlackElo "2077"]
[Annotator "NA"]
[PlyCount "104"]
[EventDate "2018.09.01"]
[EventType "swiss"]
[EventCountry "SWE"]
[SourceTitle "playchess.com"]
[Source "ChessBase"]
[SourceQuality "1"]
[TimeControl "1800+10"]

1. d4 {[%emt 0:00:00]} d5 {[%emt 0:00:00]} 2. c4 {[%emt 0:00:00]} e6 {[%emt 0:00:00]} 3. Nc3 {[%emt 0:00:04]} Nf6 {[%emt 0:00:00]} 4. cxd5 {[%emt 0:00:09]} exd5 {[%emt 0:00:01]} 5. Bg5 {[%emt 0:00:10]} Bb4 {[%emt 0:00:29]} 6. Qb3 {[%emt 0:07:33] D35: Queen's Gambit Declined: Exchange Variation} (6. e3 h6 7. Bh4 g5 8. Bg3 Ne4 9. Qb3 c5 10. Bd3 Nc6 11. Bxe4 dxe4 12. d5 Na5 13. Qa4+ Qd7 14. Qxd7+ Bxd7 15. Nge2 {½-½ (29) Ding,L (2772)-Lodici,L (2407) Antalya 2017}) 6... Nc6 {[%emt 0:00:31]} 7. e3 {[%emt 0:00:36]} Be6 {[%emt 0:00:42]} 8. Bb5 {[%emt 0:01:22]} Be7 {[%emt 0:00:40]} 9. Nf3 {[%emt 0:00:32]} O-O {[%emt 0:00:13]} 10. Bxc6 {[%emt 0:02:39]} bxc6 {[%emt 0:00:02]} 11. Ne5 $146 {[%emt 0:00:28]} ({Predecessor:} 11. Bxf6 gxf6 12. Qc2 c5 13. dxc5 Bxc5 14. O-O Qe7 {1-0 (36) Williams,H (2305)-May,F (2141) Fishguard 2015}) 11... Bd7 {[%emt 0:00:23]} 12. O-O {[%emt 0:00:49]} h6 {[%emt 0:00:51]} 13. Bh4 {[%emt 0:02:27]} Nh7 {[%emt 0:00:05]} 14. Bxe7 {[%emt 0:00:21]} Qxe7 {[%emt 0:00:02]} 15. Nxd7 {[%emt 0:03:38]} Qxd7 {[%emt 0:00:02]} 16. Na4 {[%emt 0:00:46]} Rab8 {[%emt 0:00:20]} 17. Qa3 {[%emt 0:01:17]} Qd6 {[%emt 0:00:12]} 18. Nc5 {[%emt 0:00:28]} f5 {[%emt 0:00:16]} 19. f4 {[%emt 0:02:56]} Nf6 $16 {[%emt 0:00:11]} 20. Qc3 {[%emt 0:01:42]} Rfe8 {[%emt 0:00:13]} 21. Rfe1 {[%emt 0:01:48]} Ne4 {[%emt 0:00:14]} 22. Nxe4 {[%emt 0:00:26]} Rxe4 {[%emt 0:00:04]} 23. b3 {[%emt 0:00:21]} Rbe8 {[%emt 0:00:13]} 24. Rac1 {[%emt 0:00:54]} R8e6 {[%emt 0:00:02]} 25. Kf2 {[%emt 0:00:08]} Qe7 {[%emt 0:00:11]} 26. g3 {[%emt 0:00:18]} g5 {[%emt 0:00:04]} 27. Qc5 {[%emt 0:01:39]} Kf7 {[%emt 0:00:24]} 28. Qxe7+ {[%emt 0:00:08]} Kxe7 {[%emt 0:00:02]} 29. Rc5 {[%emt 0:00:09]} Kd7 {[%emt 0:00:09]} 30. Ra5 {[%emt 0:00:02]} Re8 {[%emt 0:00:22]} 31. Rxa7 {[%emt 0:00:02]} R4e6 {[%emt 0:00:10]} 32. Ra5 {[%emt 0:00:49]} gxf4 {[%emt 0:00:13]} 33. gxf4 {[%emt 0:00:02]} Rg8 {[%emt 0:00:07]} 34. Rc5 {[%emt 0:00:23]} Reg6 {[%emt 0:00:08]} 35. Rec1 {[%emt 0:00:20]} h5 {[%emt 0:00:21]} 36. Rh1 {[%emt 0:00:16]} Rg2+ {[%emt 0:00:03]} 37. Kf3 {[%emt 0:00:15]} Rxa2 {[%emt 0:00:04]} 38. Rcc1 {[%emt 0:00:06]} Rgg2 {[%emt 0:00:12]} 39. Rcf1 {[%emt 0:00:04]} Rxh2 {[%emt 0:00:13]} 40. Rxh2 {[%emt 0:00:03]} Rxh2 {[%emt 0:00:03]} 41. Kg3 {[%emt 0:00:11]} Rb2 {[%emt 0:00:06]} 42. Kh4 {[%emt 0:00:17]} Rxb3 {[%emt 0:00:04]} 43. Re1 {[%emt 0:00:00]} Rb2 {[%emt 0:00:19]} 44. Rh1 {[%emt 0:00:13]} Rb3 {[%emt 0:00:25]} 45. Rh3 {[%emt 0:00:01]} Ke6 {[%emt 0:00:10]} 46. Kxh5 {[%emt 0:00:07]} c5 {[%emt 0:00:03]} 47. dxc5 {[%emt 0:00:05]} d4 {[%emt 0:00:01]} 48. Kg5 {[%emt 0:00:14]} dxe3 {[%emt 0:00:06]} 49. Rh6+ {[%emt 0:00:32]} Kd5 {[%emt 0:00:09]} 50. Kxf5 {[%emt 0:00:12]} Kxc5 {[%emt 0:00:24]} 51. Re6 {[%emt 0:00:02]} Kd4 {[%emt 0:00:11]} 52. Kg6 {[%emt 0:00:19]} Rb6 {[%emt 0:00:14]} 0-1

[Event "Pia Cramling Ladies Open 2018"]
[Site "Stockholm"]
[Date "2018.09.01"]
[Round "4"]
[White "Nilsson, Kajsa"]
[Black "Fransson, Angelina"]
[Result "0-1"]
[ECO "B22"]
[WhiteElo "1704"]
[BlackElo "2004"]
[Annotator "NA"]
[PlyCount "98"]
[EventDate "2018.09.01"]
[EventType "swiss"]
[EventCountry "SWE"]
[SourceTitle "playchess.com"]
[Source "ChessBase"]
[SourceQuality "1"]
[TimeControl "1800+10"]

1. e4 {[%emt 0:00:00]} c5 {[%emt 0:00:00]} 2. c3 {[%emt 0:00:00]} Nf6 {[%emt 0:00:06]} 3. e5 {[%emt 0:00:04]} Nd5 {[%emt 0:00:01]} 4. d4 {[%emt 0:00:18]} cxd4 {[%emt 0:00:02]} 5. Nf3 {[%emt 0:00:10]} g6 {[%emt 0:01:07]} 6. cxd4 {[%emt 0:02:46]} Bg7 {[%emt 0:00:12]} 7. Bc4 {[%emt 0:00:34]} Nb6 {[%emt 0:00:16]} 8. Bb3 {[%emt 0:00:12]} d5 {[%emt 0:04:06]} 9. O-O {[%emt 0:03:42]} O-O {[%emt 0:00:18]} 10. Nc3 {[%emt 0:00:41]} Nc6 {[%emt 0:00:48]} 11. Bf4 {[%emt 0:00:45]} Bg4 {[%emt 0:01:07]} 12. Be3 {[%emt 0:02:31]} Na5 {[%emt 0:02:16]} 13. Bc2 {[%emt 0:02:36]} Nbc4 {[%emt 0:00:22]} 14. b3 {[%emt 0:00:54]} Nxe3 {[%emt 0:00:15]} 15. fxe3 {[%emt 0:00:08]} Rc8 {[%emt 0:00:52]} 16. Ne2 {[%emt 0:01:19]} Nc6 {[%emt 0:00:57]} 17. Rc1 {[%emt 0:01:08]} e6 {[%emt 0:02:56]} 18. Bb1 {[%emt 0:03:12]} Ne7 {[%emt 0:00:31]} 19. Nc3 {[%emt 0:00:36]} Qa5 {[%emt 0:02:36]} 20. Na4 {[%emt 0:03:34]} Rxc1 {[%emt 0:02:03]} 21. Qxc1 {[%emt 0:00:06]} Rc8 {[%emt 0:00:01]} 22. Qb2 {[%emt 0:00:58]} Bh6 {[%emt 0:00:30]} 23. Qf2 {[%emt 0:00:35]} Nf5 {[%emt 0:00:52]} 24. Bxf5 {[%emt 0:00:59]} Bxf5 {[%emt 0:01:32]} 25. Nc5 {[%emt 0:00:49]} Qc3 {[%emt 0:00:46]} 26. Re1 {[%emt 0:00:46]} b6 {[%emt 0:02:53]} 27. Nd7 {[%emt 0:01:32]} Bg7 {[%emt 0:01:22]} 28. Qh4 {[%emt 0:01:08]} h5 {[%emt 0:01:00]} 29. Nf6+ {[%emt 0:00:37]} Kf8 {[%emt 0:00:18]} 30. Ng5 {[%emt 0:00:17]} Bxf6 {[%emt 0:01:01]} 31. Nh7+ {[%emt 0:00:40]} Kg7 {[%emt 0:00:16]} 32. Nxf6 {[%emt 0:00:22]} Qd2 {[%emt 0:00:10]} 33. Nd7 {[%emt 0:01:03]} Be4 {[%emt 0:00:58]} 34. Qf6+ {[%emt 0:00:13]} Kg8 {[%emt 0:00:03]} 35. Qf1 {[%emt 0:00:19]} Rc2 {[%emt 0:00:29]} 36. Nf6+ {[%emt 0:00:01]} Kf8 {[%emt 0:00:39]} 37. Nxe4 {[%emt 0:00:16]} dxe4 {[%emt 0:00:02]} 38. h3 {[%emt 0:00:05]} a5 {[%emt 0:00:55]} 39. Kh2 {[%emt 0:00:04]} h4 {[%emt 0:00:22]} 40. a4 {[%emt 0:00:23]} Qf2 {[%emt 0:00:33]} 41. Qxf2 {[%emt 0:00:15]} Rxf2 {[%emt 0:00:02]} 42. Rc1 {[%emt 0:00:01]} Re2 {[%emt 0:00:08]} 43. Rc3 {[%emt 0:00:10]} Ke8 {[%emt 0:00:14]} 44. Rc6 {[%emt 0:00:13]} Rxe3 {[%emt 0:00:06]} 45. Rxb6 {[%emt 0:00:02]} Rd3 {[%emt 0:00:09]} 46. Rb5 {[%emt 0:00:15]} e3 {[%emt 0:00:09]} 47. Kg1 {[%emt 0:00:08]} Rd1+ {[%emt 0:00:04]} 48. Kh2 {[%emt 0:00:04]} e2 {[%emt 0:00:02]} 49. Rb8+ {[%emt 0:00:03]} Kd7 {[%emt 0:00:04]} 0-1

[Event "Pia Cramling Ladies Open 2018"]
[Site "Stockholm"]
[Date "2018.09.01"]
[Round "4"]
[White "Fransson, Pia"]
[Black "Lindberg, Cajsa"]
[Result "1-0"]
[ECO "D10"]
[WhiteElo "1549"]
[BlackElo "1625"]
[Annotator "NA"]
[PlyCount "79"]
[EventDate "2018.09.01"]
[EventType "swiss"]
[EventCountry "SWE"]
[SourceTitle "playchess.com"]
[Source "ChessBase"]
[SourceQuality "1"]
[TimeControl "1800+10"]

1. d4 {[%emt 0:02:13]} d5 {[%emt 0:00:00]} 2. Nf3 {[%emt 0:00:01]} Nf6 {[%emt 0:00:07]} 3. c4 {[%emt 0:00:02]} c6 {[%emt 0:00:12]} 4. cxd5 {[%emt 0:00:17]} cxd5 {[%emt 0:00:06]} 5. Nc3 {[%emt 0:00:10]} a6 {[%emt 0:01:35]} 6. Bf4 {[%emt 0:00:14]} e6 {[%emt 0:01:33]} 7. e3 {[%emt 0:00:13]} Bd6 {[%emt 0:00:19]} 8. Ne5 {[%emt 0:00:14]} O-O {[%emt 0:00:18]} 9. Bd3 {[%emt 0:00:30]} Nc6 {[%emt 0:00:59]} 10. O-O {[%emt 0:00:30]} Ne8 {[%emt 0:01:30]} 11. Rc1 {[%emt 0:01:31]} f6 {[%emt 0:00:23]} 12. Nxc6 {[%emt 0:00:36]} bxc6 {[%emt 0:00:03]} 13. Bxd6 {[%emt 0:00:10]} Nxd6 {[%emt 0:00:14]} 14. Na4 {[%emt 0:00:06]} Bd7 {[%emt 0:00:39]} 15. Nc5 {[%emt 0:00:06]} e5 {[%emt 0:00:53]} 16. Bc2 {[%emt 0:06:42]} Qe7 {[%emt 0:02:16]} 17. Qh5 {[%emt 0:12:00]} e4 {[%emt 0:02:47]} 18. Qe2 {[%emt 0:00:57]} a5 {[%emt 0:00:56]} 19. a4 {[%emt 0:00:23]} f5 {[%emt 0:00:43]} 20. f3 {[%emt 0:01:18]} Rf6 {[%emt 0:05:40]} 21. fxe4 {[%emt 0:00:54]} Nxe4 {[%emt 0:01:36]} 22. Bxe4 {[%emt 0:00:54]} dxe4 {[%emt 0:00:10]} 23. Rc3 {[%emt 0:01:22]} Qd6 {[%emt 0:01:31]} 24. Rb3 {[%emt 0:00:47]} Raf8 {[%emt 0:01:33]} 25. Qa6 {[%emt 0:00:24]} f4 {[%emt 0:01:15]} 26. Nxe4 {[%emt 0:00:47]} Qe6 {[%emt 0:02:34]} 27. Nxf6+ {[%emt 0:00:03]} gxf6 {[%emt 0:00:07]} 28. Qd3 {[%emt 0:00:17]} fxe3 {[%emt 0:00:48]} 29. Qxe3 {[%emt 0:00:02]} Qxe3+ {[%emt 0:01:07]} 30. Rxe3 {[%emt 0:00:02]} Kf7 {[%emt 0:00:14]} 31. Rfe1 {[%emt 0:00:04]} Re8 {[%emt 0:00:06]} 32. Rxe8 {[%emt 0:00:03]} Bxe8 {[%emt 0:00:01]} 33. Rc1 {[%emt 0:00:07]} Bd7 {[%emt 0:00:03]} 34. Rc5 {[%emt 0:00:01]} Ke6 {[%emt 0:00:14]} 35. Rxa5 {[%emt 0:00:01]} Kd6 {[%emt 0:00:32]} 36. b4 {[%emt 0:00:01]} Be6 {[%emt 0:00:15]} 37. Kf2 {[%emt 0:00:03]} Bd5 {[%emt 0:00:18]} 38. g3 {[%emt 0:00:01]} Kc7 {[%emt 0:00:39]} 39. Ke3 {[%emt 0:00:01]} Kb7 {[%emt 0:00:14]} 40. Kf4 {[%emt 0:00:01]} 1-0

[Event "Pia Cramling Ladies Open 2018"]
[Site "Stockholm"]
[Date "2018.09.01"]
[Round "4"]
[White "Ristoja, Aulikki"]
[Black "Johansson, Eva"]
[Result "0-1"]
[ECO "D00"]
[WhiteElo "1530"]
[BlackElo "1881"]
[Annotator "NA"]
[PlyCount "52"]
[EventDate "2018.09.01"]
[EventType "swiss"]
[EventCountry "SWE"]
[SourceTitle "playchess.com"]
[Source "ChessBase"]
[SourceQuality "1"]
[TimeControl "1800+10"]

1. d4 {[%emt 0:00:00]} d5 {[%emt 0:00:03]} 2. Bf4 {[%emt 0:00:00]} Nf6 {[%emt 0:00:28]} 3. e3 {[%emt 0:00:06]} c6 {[%emt 0:00:27]} 4. Nd2 {[%emt 0:00:11]} e6 {[%emt 0:00:27]} 5. h3 {[%emt 0:00:36]} Be7 {[%emt 0:00:37]} 6. Ngf3 {[%emt 0:00:24]} Nbd7 {[%emt 0:00:24]} 7. Bd3 {[%emt 0:00:24]} O-O {[%emt 0:00:45]} 8. c4 {[%emt 0:00:54]} c5 {[%emt 0:03:04]} 9. Rc1 {[%emt 0:01:20]} cxd4 {[%emt 0:00:44]} 10. exd4 {[%emt 0:00:15]} b6 {[%emt 0:01:37]} 11. cxd5 {[%emt 0:01:49]} Nxd5 {[%emt 0:01:06]} 12. Be5 {[%emt 0:01:20]} Nxe5 {[%emt 0:02:51]} 13. dxe5 {[%emt 0:01:40]} Nf4 {[%emt 0:00:46]} 14. Be4 {[%emt 0:01:48]} Ba6 {[%emt 0:00:52]} 15. Rh2 {[%emt 0:07:10]} Rc8 {[%emt 0:01:14]} 16. Rxc8 {[%emt 0:00:49]} Qxc8 {[%emt 0:00:02]} 17. Qc2 {[%emt 0:01:33]} Qxc2 {[%emt 0:02:02]} 18. Bxc2 {[%emt 0:00:03]} Rc8 {[%emt 0:00:04]} 19. Nd4 {[%emt 0:05:17]} Bc5 {[%emt 0:02:59]} 20. N2b3 {[%emt 0:00:40]} Bb4+ {[%emt 0:01:07]} 21. Kd1 {[%emt 0:00:59]} Nd3 {[%emt 0:01:20]} 22. Bxd3 {[%emt 0:01:34]} Bxd3 {[%emt 0:00:01]} 23. f4 {[%emt 0:00:55]} a5 {[%emt 0:00:37]} 24. g4 {[%emt 0:01:19]} a4 {[%emt 0:00:36]} 25. Nc1 {[%emt 0:00:45]} Be4 {[%emt 0:01:28]} 26. Nce2 {[%emt 0:01:15]} Ra8 0-1